bitfinex-derivatives/quotes_ETHF0:USTF0_20250115
["timestamp","ask_amount","ask_price","bid_price","bid_amount"]
[1736983000541,3.54882,3431.4,3431.1,0.58286]
[1736983000727,2.966,3431.4,3430.9,3.2078]
[1736983000930,3.54883,3431.4,3431.0,0.58287]
[1736983001133,3.2078,3431.5,3430.9,3.2078]
[1736983001328,3.2078,3431.5,3431.4,0.58282]
[1736983002037,5.52981623,3432.0,3431.1,1.159]
[1736983002238,5.52981623,3432.0,3431.5,0.58279]
[1736983002738,0.58275,3431.8,3431.4,41.38281]
[1736983002933,5.52981623,3432.0,3431.4,40.8]
[1736983003137,0.58274,3431.9,3431.5,0.58278]
[1736983003640,0.58274,3431.9,3431.4,40.8]
[1736983003839,5.52981623,3432.0,3431.1,1.159]
[1736983004239,0.5828,3431.6,3431.1,1.74185]
[1736983004435,2.32201623,3431.7,3431.1,1.159]
[1736983004637,2.32201623,3431.7,3431.1,0.58287]
[1736983004638,0.5828,3431.5,3431.1,0.58287]
[1736983004838,3.2078,3431.6,3430.9,4.3668]
[1736983005041,3.2078,3431.6,3431.0,0.58288]
[1736983005235,0.58282,3431.4,3431.0,0.58288]
[1736983005441,3.2078,3431.6,3430.9,3.2078]
[1736983005638,3.6558,3431.6,3431.0,0.58287]
[1736983005841,0.58283,3431.4,3431.0,0.58287]
[1736983006036,2.32201623,3431.7,3431.0,0.58288]
[1736983006037,2.90478623,3431.7,3431.0,0.58288]
[1736983006244,3.2078,3431.6,3430.9,3.2078]
[1736983006442,3.79059,3431.6,3430.9,3.2078]
[1736983006743,3.79059,3431.6,3431.0,0.58288]
[1736983006939,3.79059,3431.6,3430.9,3.2078]
[1736983007139,3.2078,3431.6,3430.9,3.2078]
[1736983007335,3.2078,3431.6,3431.5,0.5828]
[1736983009242,0.58273,3431.9,3431.4,0.58281]
[1736983009444,0.58274,3431.9,3431.5,0.5828]
[1736983009647,0.58275,3431.8,3431.5,0.5828]
[1736983010650,0.58275,3431.8,3430.9,3.2078]
[1736983010944,0.58277,3431.7,3431.4,0.58281]
[1736983011751,5.52981623,3432.0,3431.3,0.58282]
[1736983011752,3.79059,3431.6,3431.3,0.58282]
[1736983011942,3.79059,3431.6,3431.1,0.58285]
[1736983011943,0.58281,3431.5,3431.1,0.58285]
[1736983012143,0.58282,3431.4,3431.1,0.58285]
[1736983012343,0.5828,3431.5,3431.2,0.58284]
[1736983013344,0.5828,3431.5,3430.9,3.79069]
[1736983013551,0.58286,3431.2,3430.9,0.58289]
[1736983013848,3.2078,3431.2,3430.7,40.8]
[1736983014147,0.58291,3430.9,3430.7,40.8]
[1736983014951,3.2078,3431.2,3430.7,40.8]
[1736983015255,3.2078,3431.2,3430.7,41.38294]
[1736983015256,0.58291,3430.9,3430.7,41.38294]
[1736983015944,3.2078,3431.2,3430.7,40.8]
[1736983016139,0.5829,3431.0,3430.7,41.38293]
[1736983016545,0.5829,3430.9,3430.7,41.38293]
[1736983017051,3.2078,3431.2,3430.7,41.38293]
[1736983017351,0.58289,3431.0,3430.7,41.38293]
[1736983017541,3.2078,3431.2,3430.7,40.8]
[1736983018144,0.58292,3430.8,3430.7,40.8]
[1736983018749,0.58292,3430.9,3430.7,40.8]
[1736983019148,2.32201623,3431.1,3430.7,40.8]
[1736983019344,3.79072,3430.8,3430.7,40.8]
[1736983020754,3.79072,3430.8,3430.0,3.2078]
[1736983020755,0.58305,3430.1,3429.9,0.58307]
[1736983020962,2.32201623,3430.3,3429.3,1.5985]
[1736983021159,2.32201623,3430.3,3429.8,0.58308]
[1736983021357,0.58304,3430.1,3429.8,0.58308]
[1736983022155,2.32201623,3430.3,3429.5,0.459]
[1736983022560,0.58303,3430.2,3429.9,0.58306]
[1736983022762,0.9216,3430.7,3430.0,3.2078]
[1736983022960,0.438,3430.7,3430.5,0.58296]
[1736983023165,0.438,3430.7,3430.6,0.58295]
[1736983023363,1.02094,3430.7,3430.1,0.4518]
[1736983023566,1.02094,3430.7,3430.4,0.58297]
[1736983023760,1.02094,3430.7,3430.6,40.8]
[1736983026069,0.438,3430.7,3430.6,40.8]
[1736983026568,3.2078,3430.8,3430.7,0.58294]
[1736983026768,3.2078,3430.8,3430.7,1.05734]
[1736983027469,0.5829,3431.0,3430.7,1.05734]
[1736983028268,0.9396,3431.1,3430.7,0.4744]
[1736983028469,0.58291,3430.9,3430.7,0.4744]
[1736983028961,0.9396,3431.1,3430.6,40.8]
[1736983029168,0.58294,3430.7,3430.6,40.8]
[1736983029561,3.2078,3430.8,3430.3,0.583]
[1736983029765,3.2078,3430.8,3430.4,0.58298]
[1736983030071,0.58296,3430.6,3430.5,40.8]
[1736983030875,3.2078,3430.8,3430.5,40.8]
[1736983031072,3.2078,3430.8,3430.5,41.38296]
[1736983031277,3.79073,3430.8,3430.5,41.38296]
[1736983031572,3.2078,3430.8,3430.5,41.38296]
[1736983031775,0.58294,3430.7,3430.5,41.38296]
[1736983032572,3.2078,3430.8,3430.5,40.8]
[1736983032969,3.2078,3430.8,3430.7,0.58294]
[1736983033277,3.2078,3431.3,3430.5,44.0078]
[1736983033565,0.58288,3431.1,3430.8,0.5829]
[1736983033772,0.58288,3431.1,3430.5,44.0078]
[1736983034073,2.32201623,3430.8,3430.2,0.4388]
[1736983034276,0.4462,3430.7,3430.2,0.4388]
[1736983034468,0.4462,3430.7,3430.6,0.58295]
[1736983036674,1.02914,3430.7,3430.5,0.58297]
[1736983036870,0.4462,3430.7,3430.5,0.58297]
[1736983038274,0.4462,3430.7,3430.3,40.8]
[1736983038468,0.4462,3430.7,3430.6,0.58295]
[1736983039070,0.4462,3430.7,3430.5,0.58296]
[1736983039273,0.4462,3430.7,3430.3,40.8]
[1736983039473,1.02915,3430.7,3430.5,0.58297]
[1736983040667,0.58298,3430.5,3430.3,41.383]
[1736983040868,0.58296,3430.6,3430.4,0.58299]
[1736983043074,1.02915,3430.7,3430.3,40.8]
[1736983043468,1.02915,3430.7,3430.5,0.58296]
[1736983044489,1.02914,3430.7,3430.5,0.58296]
[1736983045275,0.4462,3430.7,3430.3,40.8]
[1736983045475,0.58296,3430.6,3430.4,0.58299]
[1736983045989,0.58296,3430.6,3430.5,0.58297]
[1736983046581,0.4462,3430.7,3430.3,40.8]
[1736983046781,0.58297,3430.6,3430.4,1.03864829]
[1736983047084,0.58297,3430.6,3430.5,1.03863829]
[1736983047689,0.58297,3430.6,3430.5,0.45566829]
[1736983048187,0.4462,3430.7,3430.5,0.45566829]
[1736983048388,1.02915,3430.7,3430.5,0.58297]
[1736983049183,0.4462,3430.7,3430.5,0.58297]
[1736983049381,0.58295,3430.6,3430.5,0.58297]
[1736983050682,0.4462,3430.7,3430.6,0.58295]
[1736983050983,1.02914,3430.7,3430.3,40.8]
[1736983051178,1.02914,3430.7,3430.6,0.58295]
[1736983051379,0.4462,3430.7,3430.3,40.8]
[1736983051779,0.58296,3430.6,3430.4,0.58298]
[1736983053389,0.4462,3430.7,3430.3,40.8]
[1736983053589,0.583,3430.3,3430.2,0.4388]
[1736983053788,0.4462,3430.7,3430.2,0.4388]
[1736983053987,0.4462,3430.7,3430.3,0.583]
[1736983053988,0.58298,3430.5,3430.3,0.583]
[1736983054290,0.58295,3430.6,3430.2,41.8218]
[1736983054488,0.58299,3430.5,3430.2,41.8218]
[1736983054691,0.58299,3430.5,3430.3,0.583]
[1736983054891,0.4462,3430.7,3430.2,41.2388]
[1736983055194,0.4462,3430.7,3430.6,0.58295]
[1736983056290,0.4462,3430.7,3430.2,41.2388]
[1736983056486,1.02915,3430.7,3430.6,0.58295]
[1736983056996,0.58296,3430.6,3430.5,0.58296]
[1736983057487,0.4462,3430.7,3430.2,41.2388]
[1736983057688,0.4462,3430.7,3430.6,0.58295]
[1736983057987,0.4462,3430.7,3429.5,7.77580462]
[1736983058183,0.4462,3430.7,3429.6,0.8864]
[1736983058184,2.32201623,3430.3,3429.6,0.8864]
[1736983058385,0.58306,3430.0,3429.9,0.58305]
[1736983058585,0.58306,3430.0,3429.9,41.38305]
[1736983058787,0.4487,3430.2,3429.9,40.8]
[1736983059092,0.58305,3430.1,3430.0,0.58304]
[1736983060195,0.4487,3430.2,3429.9,40.8]
[1736983060388,0.4487,3430.2,3429.9,41.38306]
[1736983060389,0.58305,3430.0,3429.9,41.38306]
[1736983060593,0.58305,3430.0,3429.9,40.8]
[1736983062288,0.58305,3430.0,3429.9,41.38307]
[1736983062796,0.58305,3430.0,3429.9,40.8]
[1736983064296,3.79085,3430.0,3429.9,40.8]
[1736983065986,6.11286623,3430.0,3429.9,40.8]
[1736983066196,0.58311,3429.7,3429.6,0.8864]
[1736983066391,2.90512623,3429.7,3429.6,0.8864]
[1736983066596,2.90512623,3429.7,3429.6,0.4434]
[1736983067002,0.58312,3429.6,3429.5,40.8]
[1736983067302,3.6626,3429.6,3429.4,0.4445]
[1736983067496,0.58314,3429.5,3429.4,0.4445]
[1736983067896,0.58314,3429.5,3429.4,41.2445]
[1736983068093,0.58314,3429.5,3429.4,40.8]
[1736983068495,0.58316,3429.4,3429.3,0.4634]
[1736983069099,2.32201623,3429.4,3429.1,41.275]
[1736983069303,3.79099,3429.2,3429.1,41.275]
[1736983070696,3.79099,3429.2,3429.1,0.475]
[1736983071594,0.58321,3429.1,3429.0,0.4388]
[1736983071799,1.03471,3429.1,3429.0,0.4388]
[1736983072205,0.58324,3428.9,3428.8,41.2524]
[1736983072901,2.77351623,3429.1,3428.5,0.4703]
[1736983073096,0.58329,3428.6,3428.5,0.4703]
[1736983073297,0.58329,3428.6,3428.5,41.2703]
[1736983073604,5.52981623,3428.8,3428.4,0.4579]
[1736983073800,0.58331,3428.5,3428.4,0.4579]
[1736983074198,0.58333,3428.4,3428.3,0.457]
[1736983074405,0.58339,3428.1,3427.9,1.05371]
[1736983074705,0.58339,3428.1,3428.0,0.4718]
[1736983075601,0.58349,3427.5,3427.2,0.58352]
[1736983075807,0.58348,3427.5,3427.4,0.4718]
[1736983076899,0.58347,3427.6,3427.4,0.4718]
[1736983077599,0.58348,3427.5,3427.4,0.4718]
[1736983077805,0.58347,3427.6,3427.4,0.4718]
[1736983077997,2.78381623,3427.7,3427.4,1.0553]
[1736983078197,0.4618,3427.7,3427.5,0.58348]
[1736983078399,0.4618,3427.7,3427.6,0.58346]
[1736983078602,0.4618,3427.7,3427.5,1.06347]
[1736983078897,0.4618,3427.7,3427.5,0.48]
[1736983079094,0.4618,3427.7,3427.6,0.58346]
[1736983079299,2.32201623,3428.1,3427.5,0.48]
[1736983079500,2.32201623,3428.1,3427.9,0.5834]
[1736983079703,2.32201623,3428.1,3428.0,0.58339]
[1736983079903,2.32201623,3428.1,3428.0,41.38339]
[1736983080094,2.90539623,3428.1,3428.0,40.8]
[1736983080299,2.32201623,3428.1,3428.0,41.38339]
[1736983080501,0.4815,3428.2,3428.1,0.58338]
[1736983080702,0.4815,3428.2,3428.1,1.06118]
[1736983080898,0.4815,3428.2,3428.1,0.9264]
[1736983081303,0.4815,3428.2,3428.1,1.50978]
[1736983081806,0.58346,3427.6,3427.5,0.48]
[1736983082009,3.2078,3427.6,3427.2,0.9264]
[1736983082196,3.2078,3427.6,3427.3,40.8]
[1736983082197,0.4407,3427.5,3427.3,40.8]
[1736983082402,0.58351,3427.3,3427.2,0.9264]
[1736983082906,0.58355,3427.1,3427.0,41.2766]
[1736983083210,0.58355,3427.1,3427.0,40.8]
[1736983083399,0.58362,3426.7,3426.6,0.9264]
[1736983083600,0.58362,3426.7,3426.6,0.4778]
[1736983083808,0.58368,3426.4,3426.1,0.58371]
[1736983084000,3.2078,3426.7,3426.1,0.58371]
[1736983084001,2.32201623,3426.2,3426.1,0.58371]
[1736983084309,2.90571623,3426.2,3426.0,0.9551]
[1736983084608,2.32201623,3426.2,3426.0,0.9551]
[1736983084808,2.32201623,3426.2,3426.1,0.58372]
[1736983086307,2.32201623,3426.2,3426.0,0.9551]
[1736983086605,0.58372,3426.1,3426.0,0.4739]
[1736983088101,5.28801623,3426.2,3425.7,0.4644]
[1736983088308,2.90578623,3425.8,3425.7,0.4644]
[1736983088707,2.32201623,3425.8,3425.6,0.4518]
[1736983088904,2.32201623,3425.8,3425.7,40.8]
[1736983089105,0.58382,3425.5,3425.4,0.4472]
[1736983089408,5.52981623,3425.5,3424.8,0.4518]
[1736983089712,2.966,3425.7,3424.9,40.8]
[1736983089713,5.52981623,3425.0,3424.9,40.8]
[1736983089912,2.32201623,3425.0,3424.9,41.38392]
[1736983090504,2.32201623,3425.0,3424.9,0.58392]
[1736983090810,2.32201623,3425.3,3424.8,0.4518]
[1736983091007,3.2078,3425.4,3425.3,0.58385]
[1736983091516,3.2078,3425.4,3424.9,40.8]
[1736983091713,3.2078,3425.4,3425.3,0.58385]
[1736983093912,2.90578623,3425.9,3425.5,0.58381]
[1736983094112,0.5838,3425.7,3425.3,0.58385]
[1736983094417,0.58377,3425.8,3425.3,0.4725]
[1736983094716,0.58377,3425.8,3425.5,0.58382]
[1736983095212,2.32201623,3425.9,3425.5,0.58382]
[1736983095406,2.32201623,3425.9,3425.8,0.58377]
[1736983096222,2.32201623,3426.2,3426.1,0.58372]
[1736983096420,5.52981623,3426.5,3425.7,1.16]
[1736983096907,5.52981623,3426.5,3426.4,0.58367]
[1736983097112,2.32201623,3426.8,3426.3,3.2078]
[1736983097315,2.32201623,3426.8,3426.7,0.58362]
[1736983098215,2.32201623,3426.8,3426.6,0.58362]
[1736983098411,2.32201623,3426.8,3426.3,44.0078]
[1736983098827,2.32201623,3426.8,3426.7,0.58362]
[1736983100111,2.32201623,3426.8,3426.3,40.8]
[1736983100317,2.32201623,3426.4,3426.3,41.38368]
[1736983101122,2.32201623,3426.4,3426.3,0.58368]
[1736983103118,0.58368,3426.3,3426.1,1.03991]
[1736983103424,0.5837,3426.2,3426.1,0.4562]
[1736983105421,3.2078,3426.2,3425.6,1.0331]
[1736983105622,0.58378,3425.8,3425.6,1.0331]
[1736983105824,0.58378,3425.8,3425.7,0.58379]
[1736983106123,2.90577623,3425.9,3425.7,0.58379]
[1736983107724,2.32201623,3425.9,3425.6,0.4493]
[1736983107914,2.32201623,3425.9,3425.8,0.58377]
[1736983108928,0.58374,3426.0,3425.8,0.58377]
[1736983109227,3.2078,3426.6,3425.8,3.2078]
[1736983109421,3.2078,3426.6,3426.3,0.58368]
[1736983109614,0.5836,3426.8,3426.3,0.58368]
[1736983109817,2.32201623,3426.6,3426.3,0.58368]
[1736983110223,2.32201623,3426.6,3426.3,41.38368]
[1736983111428,2.32201623,3426.9,3426.3,41.38368]
[1736983111630,2.32201623,3426.9,3426.3,42.29288]
[1736983112132,3.2078,3427.2,3427.1,0.58355]
[1736983113627,2.90550623,3427.5,3427.2,0.58352]
[1736983113828,2.32201623,3427.5,3426.8,0.4431]
[1736983114021,2.32201623,3427.5,3427.4,0.5835]
[1736983114428,2.32201623,3427.5,3427.3,0.58351]
[1736983114624,2.32201623,3427.5,3426.8,0.4431]
[1736983114829,2.32201623,3426.9,3426.8,0.4431]
[1736983115028,2.32201623,3426.9,3426.7,3.2078]
[1736983115326,2.32201623,3426.9,3426.4,0.4431]
[1736983115530,0.58364,3426.6,3426.4,1.02676]
[1736983115825,0.58364,3426.6,3426.2,3.2078]
[1736983115826,2.32201623,3426.6,3426.2,3.2078]
[1736983116028,0.58371,3426.2,3425.9,0.58375]
[1736983116221,0.58375,3425.9,3425.8,3.665]
[1736983116425,0.58375,3425.9,3425.8,0.4572]
[1736983117524,2.32201623,3426.0,3425.4,3.6509]
[1736983117729,3.691,3426.1,3425.4,0.4431]
[1736983117730,0.58381,3425.6,3425.4,0.4431]
[1736983117931,2.32201623,3425.7,3425.4,0.4431]
[1736983118133,0.58382,3425.5,3425.4,0.4431]
[1736983118431,0.5838,3425.6,3425.4,41.82692]
[1736983119033,0.58382,3425.5,3425.4,40.8]
[1736983119433,0.58382,3425.5,3425.3,1.02594]
[1736983119434,0.58384,3425.4,3425.3,0.4421]
[1736983119635,0.5838,3425.6,3425.3,1.02594]
[1736983119935,0.58383,3425.5,3425.3,41.82594]
[1736983120729,0.58384,3425.4,3425.3,40.8]
[1736983120934,0.58384,3425.5,3425.3,40.8]
[1736983121337,0.58384,3425.4,3425.3,40.8]
[1736983121631,0.58384,3425.4,3425.1,0.58388]
[1736983122033,0.58384,3425.4,3425.1,41.38388]
[1736983122532,0.58384,3425.4,3424.9,0.4658]
[1736983122533,0.5839,3425.1,3424.9,0.4658]
[1736983122925,0.4387,3425.3,3424.9,0.4658]
[1736983123234,0.58391,3425.0,3424.9,0.4658]
[1736983123435,0.58392,3424.9,3424.6,3.2078]
[1736983123639,2.32201623,3425.1,3424.6,3.79176]
[1736983123833,2.32201623,3425.1,3424.6,3.2078]
[1736983124132,0.58395,3424.8,3424.6,3.2078]
[1736983124335,2.32201623,3425.1,3424.6,3.79176]
[1736983124530,0.58393,3424.9,3424.6,3.79176]
[1736983124936,0.58396,3424.7,3424.6,3.2078]
[1736983125129,0.58394,3424.8,3424.6,3.79177]
[1736983125329,0.58394,3424.8,3424.6,3.2078]
[1736983125533,0.58393,3424.9,3424.6,3.79176]
[1736983125733,2.32201623,3425.1,3424.6,3.79176]
[1736983125938,0.58393,3424.9,3424.7,0.58395]
[1736983126135,0.58392,3425.0,3424.7,0.58395]
[1736983126439,0.58391,3425.0,3424.6,3.2078]
[1736983126634,0.58392,3424.9,3424.7,0.58395]
[1736983126836,2.32201623,3425.1,3424.7,0.58396]
[1736983127043,0.58389,3425.1,3424.9,0.58392]
[1736983127543,3.54988,3425.2,3425.0,0.5839]
[1736983127839,2.966,3425.2,3424.6,3.2078]
[1736983128030,2.32201623,3425.1,3424.6,3.2078]
[1736983128340,2.32201623,3425.1,3425.0,0.58391]
[1736983128540,2.966,3425.2,3425.1,0.58389]
[1736983128729,2.966,3425.2,3425.0,40.8]
[1736983129035,0.58389,3425.1,3425.0,40.8]
[1736983130234,0.58389,3425.1,3424.6,3.2078]
[1736983130438,0.58389,3425.1,3424.9,0.58392]
[1736983130638,0.58391,3425.0,3424.6,3.2078]
[1736983130836,0.5839,3425.1,3424.9,0.58392]
[1736983131038,0.58388,3425.2,3425.0,0.58391]
[1736983131439,0.58387,3425.2,3425.0,0.58391]
[1736983131642,3.21711623,3425.3,3424.9,0.58392]
[1736983131943,0.5839,3425.1,3424.9,0.58392]
[1736983132537,0.5839,3425.1,3424.7,40.8]
[1736983132747,3.34457623,3425.3,3425.1,0.58388]
[1736983132941,2.76071623,3425.3,3425.1,0.58388]
[1736983133142,0.58387,3425.2,3424.7,40.8]
[1736983133446,0.58387,3425.2,3425.0,0.5839]
[1736983133746,2.76071623,3425.3,3425.1,0.58389]
[1736983134045,0.58388,3425.2,3425.0,0.58389]
[1736983134242,2.76071623,3425.3,3424.7,40.8]
[1736983134441,2.32201623,3425.3,3425.2,0.58387]
[1736983134648,3.685,3425.7,3425.0,3.2078]
[1736983134839,2.32201623,3425.8,3425.1,0.925]
[1736983135145,8.97301623,3426.1,3426.0,0.58374]
[1736983135346,6.00701623,3426.1,3426.0,0.58374]
[1736983135543,0.58374,3426.0,3425.5,0.58382]
[1736983135843,3.38294623,3426.1,3426.0,0.58374]
[1736983136046,2.79921623,3426.1,3426.0,0.58374]
[1736983136236,3.38293623,3426.1,3426.0,0.58374]
[1736983136438,2.32201623,3426.4,3426.3,0.58368]
[1736983136736,2.32201623,3426.4,3426.2,0.58369]
[1736983137042,2.90569623,3426.4,3426.2,0.58369]
[1736983137445,2.32201623,3426.4,3426.2,0.58369]
[1736983137636,2.32201623,3426.4,3426.0,0.9448]
[1736983138041,2.32201623,3426.4,3426.2,0.58369]
[1736983138241,2.32201623,3426.4,3426.2,41.38369]
[1736983138542,2.90568623,3426.4,3426.2,41.38369]
[1736983138738,2.32201623,3426.4,3426.0,0.9448]
[1736983138938,2.32201623,3426.4,3426.3,0.58368]
[1736983139340,2.90568623,3426.4,3426.3,0.58368]
[1736983140037,2.90568623,3426.4,3426.1,0.5837]
[1736983140038,0.58369,3426.3,3426.1,0.5837]
[1736983140240,2.90568623,3426.4,3426.3,0.58368]
[1736983140436,2.32201623,3426.4,3426.0,0.9448]
[1736983140945,2.90569623,3426.4,3426.2,0.58369]
[1736983141148,2.32201623,3426.4,3426.0,0.9448]
[1736983141352,2.32201623,3426.4,3426.3,0.58368]
[1736983142554,3.2078,3426.5,3426.0,0.9448]
[1736983142846,3.2078,3426.5,3426.4,0.58367]
[1736983143243,0.58364,3426.6,3426.4,0.58367]
[1736983143547,2.32201623,3426.7,3426.0,0.9448]
[1736983143745,0.58368,3426.4,3426.3,0.58368]
[1736983144048,2.32201623,3426.7,3426.0,0.9448]
[1736983144246,2.32201623,3427.0,3426.2,3.2078]
[1736983144449,2.32201623,3427.4,3426.6,3.2078]
[1736983144644,2.32201623,3427.1,3426.7,1.3648]
[1736983144852,0.5836,3426.8,3426.7,1.3648]
[1736983145155,0.58358,3427.0,3426.9,0.58358]
[1736983145649,0.58357,3427.0,3426.9,0.58358]
[1736983145840,3.2078,3427.5,3426.7,1.3648]
[1736983146039,0.5836,3426.8,3426.7,1.3648]
[1736983146245,2.32201623,3427.1,3426.8,0.58359]
[1736983146951,0.5836,3426.9,3426.7,1.3648]
[1736983147147,0.5836,3426.9,3426.7,1.9484]
[1736983147343,0.58362,3426.7,3426.5,0.58365]
[1736983147653,2.32201623,3426.8,3426.5,0.58365]
[1736983147846,0.58363,3426.6,3426.5,0.58365]
[1736983148151,2.32201623,3426.8,3426.5,0.58365]
[1736983148552,0.58362,3426.7,3426.5,0.58364]
[1736983149053,0.58362,3426.7,3426.6,0.58363]
[1736983149352,0.58362,3426.7,3426.0,42.25934]
[1736983149353,0.58362,3426.7,3426.3,0.58368]
[1736983149650,0.58364,3426.6,3426.5,0.58365]
[1736983150356,2.32201623,3426.8,3426.2,3.2078]
[1736983150649,0.58363,3426.7,3426.2,3.2078]
[1736983150844,0.58363,3426.7,3426.6,0.58363]
[1736983151046,0.58363,3426.7,3426.2,3.2078]
[1736983151250,0.58363,3426.6,3426.2,3.2078]
[1736983151448,0.58363,3426.6,3426.4,0.58365]
[1736983151643,2.32201623,3426.8,3426.2,3.2078]
[1736983152050,0.58364,3426.6,3426.5,0.58365]
[1736983152254,2.90562623,3426.8,3426.6,0.58362]
[1736983152442,2.90562623,3426.8,3426.7,0.58362]
[1736983152649,2.90562623,3426.8,3426.2,3.2078]
[1736983152948,0.58362,3426.7,3426.6,0.58362]
[1736983153453,0.58366,3426.5,3426.2,3.2078]
[1736983153752,0.58364,3426.6,3426.4,0.58366]
[1736983154147,3.2078,3426.7,3426.4,0.58366]
[1736983154448,0.58363,3426.6,3426.4,0.58365]
[1736983154654,2.32201623,3426.5,3426.0,40.8]
[1736983154847,0.58371,3426.2,3425.9,1.4321]
[1736983155044,0.45,3426.4,3425.9,1.4321]
[1736983155250,6.1738,3426.7,3426.6,0.58363]
[1736983155652,6.1738,3426.7,3426.2,3.2078]
[1736983155948,0.58365,3426.5,3426.4,0.58366]
[1736983156151,6.6238,3426.7,3426.2,3.2078]
[1736983156352,0.58368,3426.3,3426.2,0.58369]
[1736983156653,2.32201623,3426.5,3425.9,1.4321]
[1736983156852,0.58372,3426.2,3426.0,0.58374]
[1736983157044,2.32201623,3426.5,3425.9,42.2321]
[1736983157355,0.58374,3426.0,3425.9,0.4838]
[1736983157655,2.32201623,3426.2,3425.4,4.6061]
[1736983157853,2.32201623,3426.2,3425.5,40.8]
[1736983158059,0.58375,3425.9,3425.8,0.58376]
[1736983158251,0.58379,3425.7,3425.6,0.58379]
[1736983158449,0.58378,3425.8,3425.6,0.58379]
[1736983158755,0.58379,3425.7,3425.6,0.58379]
[1736983158957,0.58378,3425.8,3425.7,0.58378]
[1736983159457,0.58376,3425.9,3425.8,0.58377]
[1736983159654,0.58377,3425.8,3425.7,0.58378]
[1736983159956,0.4478,3426.1,3425.5,40.8]
[1736983160253,1.03153,3426.1,3426.0,0.58374]
[1736983160752,3.2078,3426.3,3425.5,40.8]
[1736983160954,2.90567623,3426.5,3425.8,4.66721]
[1736983161156,2.32201623,3426.5,3425.8,3.2078]
[1736983161456,0.58368,3426.3,3426.2,0.58369]
[1736983161652,0.58368,3426.3,3425.8,3.2078]
[1736983161653,0.58368,3426.3,3426.1,0.58371]
[1736983161955,0.58371,3426.2,3426.1,0.58372]
[1736983162257,0.58368,3426.3,3425.9,0.58374]
[1736983162457,0.58374,3426.0,3425.9,0.58374]
[1736983162664,0.4474,3426.4,3425.8,3.2078]
[1736983162860,3.54963,3426.7,3426.6,0.58363]
[1736983163153,2.966,3426.7,3426.6,0.58363]
[1736983163463,2.966,3426.7,3426.0,1.45931]
[1736983163661,3.54963,3426.7,3426.1,1.4127]
[1736983163958,0.58364,3426.6,3426.5,0.58364]
[1736983164347,2.966,3426.7,3426.2,40.8]
[1736983164554,2.32201623,3426.5,3426.1,1.4127]
[1736983164755,0.58375,3425.9,3425.8,3.79157]
[1736983165465,0.58374,3426.0,3425.9,0.58375]
[1736983166261,2.32201623,3426.2,3425.9,0.58375]
[1736983166450,0.58375,3425.9,3425.6,40.8]
[1736983166762,0.58372,3426.1,3425.9,0.58374]
[1736983166966,0.58374,3426.0,3425.9,0.58374]
[1736983167260,0.58376,3425.9,3425.8,0.58376]
[1736983167662,2.32201623,3426.2,3425.6,40.8]
[1736983168056,0.58375,3425.9,3425.6,40.8]
[1736983168356,2.32201623,3426.2,3425.6,40.8]
[1736983168558,0.58374,3426.0,3425.9,0.58374]
[1736983168756,2.32201623,3426.2,3425.6,40.8]
[1736983168960,3.79146,3426.5,3426.4,0.58367]
[1736983169157,0.4815,3426.6,3425.8,1.45943]
[1736983169356,0.58365,3426.5,3426.4,0.58366]
[1736983169550,2.966,3426.7,3426.6,0.58363]
[1736983169952,0.58352,3427.3,3427.2,0.58351]
[1736983170156,2.32201623,3427.4,3426.7,0.4644]
[1736983170356,0.58356,3427.1,3427.0,0.58356]
[1736983170762,0.58358,3427.0,3426.9,0.58358]
[1736983170957,0.58358,3427.0,3426.8,40.8]
[1736983171159,2.32201623,3427.1,3426.2,3.2078]
[1736983171365,5.28801623,3426.8,3426.2,3.2078]
[1736983171567,0.58363,3426.7,3426.3,41.71]
[1736983171770,6.75741,3426.8,3426.3,41.71]
[1736983172068,0.58362,3426.7,3426.3,41.71]
[1736983172365,6.1738,3426.8,3426.7,0.58362]
[1736983174861,2.966,3426.8,3426.7,0.58362]
[1736983177059,2.32201623,3427.1,3426.3,41.71]
[1736983177260,0.58357,3427.0,3426.9,0.58357]
[1736983177665,2.32201623,3427.1,3427.0,0.58357]
[1736983177866,2.90556623,3427.1,3427.0,0.58357]
[1736983178261,2.32201623,3427.1,3427.0,0.58357]
[1736983178465,3.6606,3427.2,3427.1,0.58355]
[1736983178762,3.2078,3427.2,3427.1,0.58355]
[1736983179159,3.79133,3427.2,3427.1,0.58355]
[1736983179358,3.2078,3427.2,3427.1,0.58355]
[1736983180864,0.58352,3427.3,3426.8,0.4395]
[1736983181061,0.58352,3427.3,3427.2,0.58353]
[1736983181666,2.32201623,3427.4,3426.8,0.4395]
[1736983181967,2.90551623,3427.4,3427.3,0.58351]
[1736983182167,2.32201623,3427.4,3426.8,0.4395]
[1736983182673,3.6524,3427.6,3427.0,1.45892]
[1736983182965,0.58349,3427.5,3427.4,0.58349]
[1736983183270,3.6524,3427.6,3427.1,0.9375]
[1736983183271,0.58351,3427.4,3427.3,0.5835]
[1736983183467,0.5835,3427.4,3427.3,0.5835]
[1736983183768,0.58353,3427.2,3427.1,1.04674]
[1736983183973,0.58353,3427.2,3427.1,1.04675]
[1736983184272,0.58353,3427.2,3427.1,0.4632]
[1736983184668,0.58353,3427.2,3427.1,1.04675]
[1736983184869,0.58353,3427.2,3427.1,0.4632]
[1736983185267,0.58353,3427.2,3427.1,1.04675]
[1736983185971,1.90554623,3427.4,3427.1,0.4632]
[1736983186175,0.58353,3427.3,3427.2,0.58353]